bitfinex-derivatives/quotes_BTCF0:USTF0_20241022
["timestamp","ask_amount","ask_price","bid_price","bid_amount"]
[1729559280537,0.07426,67354.0,67342.0,0.00222635]
[1729559280538,0.074272,67343.0,67342.0,0.00222635]
[1729559280724,0.074271,67344.0,67343.0,0.0018]
[1729559280926,0.074278,67338.0,67334.0,0.073679]
[1729559281129,0.17,67336.0,67331.0,0.073679]
[1729559281430,0.17,67336.0,67330.0,0.073679]
[1729559281624,0.17,67336.0,67330.0,0.147965]
[1729559282014,0.17,67340.0,67332.0,0.17]
[1729559282228,0.3243,67343.0,67335.0,0.17]
[1729559282535,0.3243,67343.0,67337.0,0.074279]
[1729559283118,0.3608,67344.0,67339.0,0.17]
[1729559283327,0.3608,67344.0,67330.0,0.1629]
[1729559283328,0.30877366,67344.0,67343.0,0.074272]
[1729559283528,0.30877366,67344.0,67343.0,0.19132019]
[1729559283760,0.30877366,67344.0,67343.0,0.34032019]
[1729559284832,0.30877366,67344.0,67343.0,0.43781609]
[1729559285824,0.30977366,67344.0,67343.0,0.43881609]
[1729559286633,0.30977366,67344.0,67343.0,0.45483354]
[1729559287930,0.30977366,67344.0,67343.0,0.38056154]
[1729559288236,0.26518432,67344.0,67343.0,0.38056154]
[1729559288423,0.26518432,67344.0,67343.0,0.45483354]
[1729559290221,0.001,67344.0,67343.0,0.45483354]
[1729559291224,0.001,67344.0,67343.0,0.16601745]
[1729559291425,0.171,67344.0,67343.0,0.16601745]
[1729559293929,0.001,67344.0,67343.0,0.16601745]
[1729559298237,0.245271,67344.0,67343.0,0.37895367]
[1729559298440,0.245271,67344.0,67343.0,0.09814413]
[1729559298641,0.245271,67344.0,67343.0,0.21416966]
[1729559299631,0.1443,67347.0,67343.0,0.21416966]
[1729559299632,0.17,67346.0,67343.0,0.21416966]
[1729559299832,0.17,67346.0,67344.0,0.21316966]
[1729559300054,0.17,67346.0,67345.0,0.21316966]
[1729559300230,0.17,67346.0,67345.0,0.31631124]
[1729559300541,0.17,67346.0,67345.0,0.45037788]
[1729559301634,0.17,67346.0,67345.0,0.3472363]
[1729559302037,0.244269,67346.0,67345.0,0.45052514]
[1729559302233,0.244269,67346.0,67345.0,0.45152514]
[1729559302974,0.859749,67346.0,67345.0,0.21381057]
[1729559303257,1.38548,67346.0,67332.0,0.10328884]
[1729559303573,1.38548,67346.0,67329.0,0.13483844]
[1729559303574,0.17,67333.0,67329.0,0.17980467]
[1729559303742,0.17,67333.0,67331.0,0.1178761]
[1729559304063,0.074287,67330.0,67329.0,0.00222783]
[1729559304241,0.074287,67330.0,67329.0,0.11703492]
[1729559304742,0.074287,67330.0,67329.0,0.00822783]
[1729559305247,0.074287,67330.0,67329.0,0.00222783]
[1729559305633,0.6722,67332.0,67329.0,0.00222783]
[1729559306544,0.01485,67331.0,67329.0,0.00222783]
[1729559308243,0.01485,67331.0,67330.0,0.074287]
[1729559310149,0.17,67331.0,67330.0,0.11458296]
[1729559310358,0.244285,67331.0,67330.0,0.11458296]
[1729559310547,0.390285,67331.0,67330.0,0.11458296]
[1729559310745,0.390285,67331.0,67329.0,0.00222783]
[1729559310746,0.074287,67330.0,67329.0,0.00222783]
[1729559310939,0.226487,67330.0,67329.0,0.00222783]
[1729559311747,0.672047,67330.0,67329.0,0.00222783]
[1729559311951,0.673387,67330.0,67329.0,0.00222783]
[1729559312751,0.673387,67330.0,67329.0,0.07598871]
[1729559313056,0.15354,67330.0,67329.0,0.00222783]
[1729559313248,0.00134,67330.0,67329.0,0.07651583]
[1729559314154,0.00134,67330.0,67329.0,0.0930982]
[1729559315150,0.00134,67330.0,67329.0,0.20712952]
[1729559315352,0.00134,67330.0,67329.0,0.0930982]
[1729559316360,0.00134,67330.0,67329.0,0.0188102]
[1729559316858,0.17134,67330.0,67329.0,0.0188102]
[1729559317055,0.17134,67330.0,67329.0,0.00222783]
[1729559317356,0.245627,67330.0,67329.0,0.00222783]
[1729559318249,0.17134,67330.0,67329.0,0.00222783]
[1729559318548,0.00134,67330.0,67329.0,0.00222783]
[1729559320252,0.17,67331.0,67329.0,0.2114797]
[1729559320450,0.17,67331.0,67330.0,0.09546329]
[1729559320650,0.17,67334.0,67330.0,0.09546329]
[1729559320851,0.5308,67338.0,67331.0,0.24166329]
[1729559321066,0.17,67334.0,67332.0,0.09546329]
[1729559321354,0.17,67334.0,67333.0,0.09546329]
[1729559321959,0.171,67334.0,67333.0,0.09546329]
[1729559323574,0.171,67334.0,67333.0,0.09530964]
[1729559324059,0.17,67334.0,67333.0,0.09530964]
[1729559324253,0.174,67334.0,67333.0,0.09530964]
[1729559324455,0.004,67334.0,67333.0,0.09530964]
[1729559325264,0.004,67334.0,67333.0,0.16959264]
[1729559325467,0.004,67334.0,67333.0,0.28326301]
[1729559325949,0.004,67334.0,67333.0,0.41476346]
[1729559327049,0.17,67342.0,67333.0,0.34048046]
[1729559327254,0.17,67342.0,67339.0,0.3608]
[1729559327455,0.17,67342.0,67340.0,0.20898001]
[1729559327654,0.17,67342.0,67341.0,0.20898001]
[1729559327967,0.3608,67345.0,67341.0,0.28325401]
[1729559328263,0.3608,67345.0,67343.0,0.17]
[1729559328462,0.3608,67345.0,67344.0,0.35663556]
[1729559330073,0.006,67345.0,67344.0,0.35663556]
[1729559330569,0.17,67346.0,67344.0,0.35659524]
[1729559330774,0.07727,67345.0,67344.0,0.001]
[1729559330976,0.24727,67345.0,67344.0,0.09598511]
[1729559331269,0.07727,67345.0,67344.0,0.09598511]
[1729559331659,0.07727,67345.0,67344.0,0.09498511]
[1729559331660,0.07427,67345.0,67344.0,0.09498511]
[1729559331862,0.07427,67345.0,67344.0,0.09598511]
[1729559333360,0.08127,67345.0,67344.0,0.09598511]
[1729559333863,0.07427,67345.0,67344.0,0.16874392]
[1729559334064,0.08127,67345.0,67344.0,0.16974392]
[1729559334671,0.08127,67345.0,67344.0,0.09598511]
[1729559336471,0.17,67346.0,67344.0,0.09498511]
[1729559336675,0.17,67346.0,67345.0,0.09498511]
[1729559337274,0.244269,67346.0,67345.0,0.09498511]
[1729559337869,0.251269,67346.0,67345.0,0.09598511]
[1729559338670,0.251269,67346.0,67345.0,0.09589285]
[1729559340468,0.251269,67346.0,67345.0,0.1843741]
[1729559341472,0.251269,67346.0,67345.0,0.09589285]
[1729559341781,0.696749,67346.0,67345.0,0.1843741]
[1729559341964,0.696749,67346.0,67331.0,0.3608]
[1729559341965,0.44548,67345.0,67341.0,1e-08]
[1729559342169,0.074287,67330.0,67326.0,0.074291]
[1729559342371,0.244287,67330.0,67326.0,0.074291]
[1729559342877,0.244287,67330.0,67328.0,0.01601393]
[1729559343280,0.17,67338.0,67331.0,0.074285]
[1729559343481,0.244278,67338.0,67331.0,0.074285]
[1729559344382,0.074278,67338.0,67332.0,0.1457]
[1729559344770,0.17,67337.0,67332.0,0.1457]
[1729559345097,0.17,67333.0,67329.0,0.00222783]
[1729559345280,0.17,67330.0,67329.0,0.00222783]
[1729559345473,0.244287,67330.0,67329.0,0.11307293]
[1729559346580,0.244287,67330.0,67329.0,0.11293781]
[1729559347186,0.44556,67329.0,67316.0,0.10323077]
[1729559347490,0.5308,67317.0,67298.0,0.00222898]
[1729559347792,0.17,67299.0,67298.0,0.00222898]
[1729559348294,0.61576,67299.0,67298.0,0.00222898]
[1729559349479,0.61576,67299.0,67280.0,0.00188]
[1729559349688,0.61576,67299.0,67277.0,0.00222966]
[1729559349689,0.17,67281.0,67277.0,0.00222966]
[1729559349884,0.17,67279.0,67277.0,0.00222966]
[1729559350778,0.17,67279.0,67277.0,0.01622966]
[1729559351179,0.17,67279.0,67277.0,0.00222966]
[1729559351484,0.171,67279.0,67277.0,0.01622966]
[1729559356589,0.171,67279.0,67277.0,0.014]
[1729559356987,0.245344,67279.0,67277.0,0.014]
[1729559357794,0.245344,67279.0,67276.0,0.3608]
[1729559358095,0.247344,67279.0,67276.0,0.3608]
[1729559358496,0.251344,67279.0,67277.0,0.001]
[1729559360198,0.251344,67279.0,67267.0,0.1518]
[1729559360199,0.074349,67274.0,67260.0,0.36303024]
[1729559360399,0.074349,67274.0,67268.0,0.1516]
[1729559360703,0.17,67269.0,67268.0,0.1516]
[1729559363396,0.17,67269.0,67268.0,0.1536]
[1729559363996,0.17,67272.0,67268.0,0.1536]
[1729559364295,0.17,67282.0,67271.0,0.244351]
[1729559364503,0.17,67282.0,67276.0,0.17]
[1729559364696,0.17,67282.0,67277.0,0.1518]
[1729559365096,0.17,67279.0,67277.0,0.1518]
[1729559366002,0.17,67284.0,67277.0,0.3218]
[1729559366791,0.007,67279.0,67277.0,0.3228]
[1729559367501,0.173,67284.0,67277.0,0.3218]
[1729559367914,0.17,67278.0,67273.0,0.3608]
[1729559368614,0.074343,67279.0,67273.0,0.5308]
[1729559369218,0.077343,67279.0,67273.0,0.5308]
[1729559370814,0.074344,67278.0,67273.0,0.17]
[1729559371117,0.244345,67277.0,67271.0,0.01618604]
[1729559371311,0.244345,67277.0,67269.0,0.17]
[1729559371714,0.003,67279.0,67268.0,0.1516]
[1729559371715,0.17,67271.0,67268.0,0.1516]
[1729559371911,0.074353,67270.0,67268.0,0.16820823]
[1729559372214,0.074353,67270.0,67268.0,0.1516]
[1729559372610,0.074353,67270.0,67269.0,0.004]
[1729559373618,0.074354,67269.0,67268.0,0.007]
[1729559373824,0.074354,67269.0,67268.0,0.005]
[1729559375105,1.04596,67269.0,67253.0,0.3608]
[1729559375312,0.0167708,67270.0,67253.0,0.3608]
[1729559375313,0.17,67254.0,67253.0,0.43427632]
[1729559375509,0.17,67254.0,67253.0,0.52845265]
[1729559375713,0.17,67254.0,67253.0,0.43427632]
[1729559376024,0.17,67254.0,67253.0,0.3608]
[1729559376216,0.17,67254.0,67253.0,0.46916409]
[1729559376907,0.001,67254.0,67253.0,0.49998791]
[1729559377612,0.001,67254.0,67253.0,0.61264134]
[1729559378126,0.001,67254.0,67253.0,0.59864134]
[1729559378421,0.001,67254.0,67253.0,0.59478537]
[1729559379123,0.074371,67254.0,67253.0,0.59478537]
[1729559379318,0.074371,67254.0,67253.0,0.59499517]
[1729559379720,0.244371,67254.0,67253.0,0.13947481]
[1729559380122,0.17,67257.0,67253.0,0.13947481]
[1729559380416,0.17,67257.0,67254.0,0.18330574]
[1729559380616,0.17,67257.0,67253.0,0.04482382]
[1729559380617,0.074365,67259.0,67255.0,0.18330574]
[1729559380818,0.074365,67259.0,67256.0,0.09465099]
[1729559381024,0.074365,67259.0,67257.0,0.09465099]
[1729559381218,0.074365,67259.0,67258.0,0.09465099]
[1729559382321,0.075365,67259.0,67258.0,0.10465099]
[1729559384312,0.001,67259.0,67258.0,0.46545099]
[1729559384516,0.001,67259.0,67258.0,0.10465099]
[1729559384823,0.001,67259.0,67258.0,0.11665099]
[1729559385320,0.001,67259.0,67258.0,0.20530574]
[1729559385722,0.001,67259.0,67258.0,0.11665099]
[1729559386220,0.001,67259.0,67258.0,0.20530574]
[1729559386417,0.075365,67259.0,67258.0,0.20530574]
[1729559386617,0.075365,67259.0,67258.0,0.11665099]
[1729559393633,0.075365,67259.0,67258.0,0.11659097]
[1729559397121,0.075365,67259.0,67258.0,0.20524572]
[1729559398233,0.001,67259.0,67258.0,0.11659097]
[1729559398429,0.001,67259.0,67258.0,0.10459097]
[1729559398636,0.001,67259.0,67258.0,0.11159097]
[1729559398935,0.074362,67262.0,67258.0,0.10659097]
[1729559399134,0.074362,67262.0,67261.0,0.08875203]
[1729559399335,0.074362,67262.0,67261.0,0.183343]
[1729559400334,0.074362,67262.0,67261.0,0.09859097]
[1729559401137,0.074362,67262.0,67261.0,0.21162765]
[1729559401632,0.520402,67262.0,67261.0,0.04463581]
[1729559401839,0.520402,67262.0,67257.0,0.08889072]
[1729559402024,0.520402,67262.0,67247.0,0.1513]
[1729559402025,0.5308,67258.0,67254.0,0.08889072]
[1729559402232,0.17,67255.0,67253.0,0.08896269]
[1729559402429,0.244371,67254.0,67253.0,0.08896269]
[1729559402635,0.244371,67254.0,67247.0,0.1513]
[1729559402636,0.074377,67248.0,67247.0,0.1513]
[1729559402838,0.244377,67248.0,67247.0,0.26438566]
[1729559403116,0.244377,67248.0,67247.0,0.11308566]
[1729559403929,0.074384,67242.0,67241.0,0.00223074]
[1729559404135,0.074384,67242.0,67241.0,0.11577484]
[1729559404337,0.074384,67242.0,67241.0,0.09115146]
[1729559404530,0.690544,67242.0,67241.0,0.09115146]
[1729559404732,0.690544,67242.0,67241.0,0.00223074]
[1729559405428,0.690544,67242.0,67241.0,0.01623074]
[1729559405429,0.691544,67242.0,67241.0,0.01623074]
[1729559405623,0.692544,67242.0,67241.0,0.02923074]
[1729559406029,0.076384,67242.0,67241.0,0.02923074]
[1729559406624,0.076384,67242.0,67241.0,0.10328405]
[1729559406824,0.076384,67242.0,67241.0,0.02923074]
[1729559407029,0.076384,67242.0,67241.0,0.10323379]
[1729559407347,0.076384,67242.0,67241.0,0.027]
[1729559407530,0.002,67242.0,67241.0,0.027]
[1729559407836,0.002,67242.0,67241.0,0.249085]
[1729559408030,0.002,67242.0,67241.0,0.394685]
[1729559408233,0.3608,67245.0,67244.0,0.074382]
[1729559408429,0.17,67258.0,67244.0,0.25873451]
[1729559408638,0.244366,67258.0,67254.0,0.07394359]
[1729559408826,0.17,67255.0,67253.0,0.07394359]
[1729559409030,0.17,67255.0,67254.0,0.07394359]
[1729559409425,0.17,67255.0,67254.0,0.14831459]
[1729559409631,0.001,67258.0,67257.0,0.074367]
[1729559409836,0.001,67258.0,67257.0,0.435167]
[1729559410238,0.5308,67272.0,67257.0,0.91913081]
[1729559410547,0.244351,67272.0,67268.0,0.07391554]
[1729559410745,0.074351,67272.0,67270.0,0.07391554]
[1729559410935,0.17,67271.0,67270.0,0.07391554]
[1729559411542,0.244352,67271.0,67268.0,0.07391554]
[1729559411745,0.17,67269.0,67268.0,0.07491554]
[1729559412239,0.17,67269.0,67268.0,0.07391554]
[1729559412742,0.17,67269.0,67267.0,0.07391554]
[1729559412939,0.17,67269.0,67268.0,0.07391554]
[1729559413338,0.17,67269.0,67268.0,0.001]
[1729559413852,0.17,67269.0,67268.0,0.002]
[1729559414032,0.183,67269.0,67268.0,0.07591554]
[1729559414339,0.257354,67269.0,67268.0,0.002]
[1729559414729,0.252354,67269.0,67268.0,0.001]
[1729559414930,0.257354,67269.0,67268.0,0.002]
[1729559415141,0.255354,67269.0,67268.0,0.002]
[1729559415634,0.249354,67269.0,67268.0,0.001]
[1729559415841,0.257354,67269.0,67268.0,0.002]
[1729559416633,0.257354,67269.0,67268.0,0.001]
[1729559417836,0.013,67269.0,67264.0,0.07391554]
[1729559418036,0.013,67269.0,67263.0,0.3608]
[1729559418037,0.013,67269.0,67268.0,0.17]
[1729559418238,0.17,67277.0,67272.0,0.07435]
[1729559418542,0.1485,67282.0,67271.0,0.07373866]
[1729559418543,0.17,67273.0,67271.0,0.07373866]
[1729559418742,0.17,67273.0,67270.0,0.07373866]
[1729559419541,0.17,67281.0,67275.0,0.074347]
[1729559419740,0.17,67284.0,67276.0,0.5036]
[1729559419949,0.17,67283.0,67280.0,0.05897533]
[1729559420240,0.074338,67284.0,67281.0,0.05897533]
[1729559420441,0.074338,67284.0,67283.0,0.04422076]
[1729559420643,0.3608,67287.0,67276.0,0.59409865]
[1729559420846,0.3114,67283.0,67281.0,0.05895214]
[1729559421151,0.07434,67282.0,67281.0,0.04422077]
[1729559421334,0.07434,67282.0,67280.0,0.002]
[1729559421335,0.58108,67282.0,67280.0,0.002]
[1729559421537,0.1463,67281.0,67280.0,0.002]
[1729559421737,0.220641,67281.0,67280.0,0.001]
[1729559422538,0.074345,67277.0,67276.0,0.001]
[1729559422748,0.244345,67277.0,67276.0,0.001]
[1729559422936,0.690265,67277.0,67276.0,0.001]
[1729559423151,0.244345,67277.0,67276.0,0.001]
[1729559423449,0.074355,67268.0,67266.0,0.05895214]
[1729559423654,0.17,67267.0,67266.0,0.05895214]
[1729559423946,0.17,67267.0,67265.0,0.1428]
[1729559424147,0.17,67267.0,67266.0,0.05898103]
[1729559424350,0.074355,67268.0,67266.0,0.05897913]
[1729559424541,0.074355,67268.0,67265.0,0.1428]
[1729559424542,0.17,67267.0,67265.0,0.1428]
[1729559425144,0.171,67267.0,67265.0,0.1428]
[1729559425649,0.001,67267.0,67265.0,0.1428]
[1729559425847,0.001,67267.0,67266.0,0.3377623]
[1729559426758,0.001,67267.0,67266.0,0.0934053]
[1729559427059,0.001,67267.0,67266.0,0.07369924]
[1729559427242,0.003,67267.0,67265.0,0.1428]
[1729559427739,0.003,67267.0,67265.0,0.21649924]
[1729559428143,0.002,67267.0,67265.0,0.1428]
[1729559428452,0.076356,67267.0,67265.0,0.1428]
[1729559429052,0.37388552,67281.0,67266.0,0.09333428]
[1729559429240,0.074345,67277.0,67274.0,0.05895158]
[1729559429545,0.17,67279.0,67276.0,0.05895158]
[1729559429736,0.17,67279.0,67277.0,0.05893222]
[1729559429936,0.1483,67293.0,67279.0,0.074343]
[1729559429937,0.17,67286.0,67279.0,0.074343]
[1729559430145,0.435131,67290.0,67283.0,0.05892312]
[1729559430146,0.3608,67290.0,67283.0,0.05892312]
[1729559430341,0.17,67284.0,67283.0,0.05892312]
[1729559430539,0.17,67284.0,67282.0,0.05892312]
[1729559431343,0.17,67284.0,67283.0,0.001]
[1729559431546,0.244337,67284.0,67283.0,0.001]
[1729559431751,0.245337,67284.0,67283.0,0.001]
[1729559432250,0.171,67284.0,67283.0,0.001]
[1729559432444,0.171,67284.0,67282.0,0.06092312]
[1729559432651,0.001,67284.0,67282.0,0.06092312]
[1729559432951,0.001,67284.0,67283.0,0.13326112]
[1729559433152,0.435131,67290.0,67283.0,0.05992312]
[1729559433338,0.435131,67290.0,67284.0,0.435137]
[1729559433543,0.17,67287.0,67284.0,0.49406012]
[1729559433949,0.17,67287.0,67284.0,0.41972312]
[1729559434149,0.17,67287.0,67285.0,0.074335]
[1729559435354,0.17,67287.0,67286.0,0.05892312]
[1729559435550,0.074335,67286.0,67285.0,0.05892312]
[1729559435750,0.074335,67286.0,67285.0,0.05992312]
[1729559435949,0.074335,67286.0,67285.0,0.001]
[1729559436343,0.074336,67285.0,67284.0,0.001]
[1729559436743,0.074336,67285.0,67284.0,0.05897911]
[1729559437149,0.1359,67286.0,67280.0,0.07368948]
[1729559437353,0.07434,67282.0,67281.0,0.09286894]
[1729559438543,0.07434,67282.0,67281.0,0.0928435]
[1729559438941,0.07434,67282.0,67281.0,0.0938435]
[1729559439151,0.24434,67282.0,67281.0,0.0938435]
[1729559439454,0.07434,67282.0,67281.0,0.09489414]
[1729559440445,0.17,67286.0,67281.0,0.09492694]
[1729559440756,0.074336,67285.0,67284.0,0.07384904]
[1729559440962,0.074336,67285.0,67284.0,0.09292694]
[1729559442647,0.074336,67285.0,67284.0,0.09492694]
[1729559443348,0.074336,67285.0,67284.0,0.16877205]
[1729559443948,0.074336,67285.0,67284.0,0.002]
[1729559446850,0.213336,67285.0,67284.0,0.002]
[1729559447447,0.22648718,67285.0,67284.0,0.002]
[1729559453355,0.22648718,67285.0,67284.0,0.16818554]
[1729559453877,0.074336,67285.0,67284.0,0.16820491]
[1729559454162,0.074336,67285.0,67284.0,0.0943598]
[1729559458266,0.074336,67285.0,67284.0,0.18305845]
[1729559458654,0.074336,67285.0,67284.0,0.09069865]
[1729559458855,0.074336,67285.0,67284.0,0.18319812]
[1729559459364,0.074336,67285.0,67284.0,0.09449947]
[1729559460361,0.074336,67285.0,67284.0,0.18333215]
[1729559462868,0.074336,67285.0,67284.0,0.16883647]
[1729559464064,0.074336,67285.0,67284.0,0.09449947]
[1729559466659,0.074336,67285.0,67284.0,0.18338989]
[1729559467266,0.244336,67285.0,67284.0,0.18338989]
[1729559467455,0.244336,67285.0,67284.0,0.09449947]
[1729559467662,0.074345,67277.0,67276.0,0.3608]
[1729559467870,0.244345,67277.0,67276.0,0.47136694]
[1729559469158,0.244345,67277.0,67276.0,0.3618]
[1729559469366,0.244345,67277.0,67276.0,0.001]
[1729559470166,0.245345,67277.0,67276.0,0.001]
[1729559473568,0.25890738,67277.0,67276.0,0.001]
[1729559477767,0.25890738,67277.0,67276.0,0.07499763]
[1729559480073,0.25890738,67277.0,67276.0,0.001]
[1729559481268,0.44592,67276.0,67261.0,0.4009]
[1729559481465,0.244361,67263.0,67262.0,0.10927633]
[1729559481668,0.414361,67263.0,67259.0,0.3608]
[1729559481867,0.775161,67263.0,67250.0,0.10546127]
[1729559482075,0.074373,67252.0,67251.0,0.10849598]
[1729559482270,0.17,67252.0,67250.0,0.0022305]
[1729559482474,0.074374,67251.0,67250.0,0.0022305]
[1729559482675,0.074374,67251.0,67250.0,0.0935011]
[1729559483181,0.074374,67251.0,67250.0,0.0022305]
[1729559483782,0.074374,67251.0,67250.0,0.0162305]
[1729559484481,0.074374,67251.0,67250.0,0.0132305]
[1729559485270,0.075374,67251.0,67250.0,0.0272305]
[1729559487179,0.075374,67251.0,67250.0,0.08629986]
[1729559489184,0.075374,67251.0,67250.0,0.0272305]
[1729559489385,0.075374,67251.0,67250.0,0.3858]
[1729559490203,0.001,67251.0,67250.0,0.5558]
[1729559490484,0.001,67251.0,67250.0,0.47656698]
[1729559490887,0.244369,67256.0,67250.0,1.09264698]
[1729559491079,0.244369,67256.0,67251.0,0.09076698]
[1729559491393,0.244369,67256.0,67252.0,0.09076698]
[1729559491394,0.074369,67256.0,67252.0,0.09076698]
[1729559491576,0.17,67257.0,67253.0,0.09076698]
[1729559491778,0.17,67254.0,67251.0,0.15819353]
[1729559491988,0.17,67254.0,67252.0,0.09070227]
[1729559492181,0.17,67254.0,67253.0,0.09070227]
[1729559492490,0.17,67254.0,67253.0,0.09078222]
[1729559492687,0.17,67254.0,67251.0,0.1451]
[1729559492887,0.074373,67252.0,67251.0,0.1571]
[1729559493487,0.074373,67252.0,67251.0,0.012]
[1729559493677,0.074373,67252.0,67251.0,0.07104239]
[1729559493884,0.074373,67252.0,67251.0,0.012]
[1729559494193,0.075373,67252.0,67251.0,0.08204239]
[1729559494395,0.075373,67252.0,67251.0,0.023]
[1729559494986,0.075373,67252.0,67251.0,0.011]
[1729559495787,0.075373,67252.0,67251.0,0.024]
[1729559496695,0.08890347,67252.0,67251.0,0.024]
[1729559498904,0.08890347,67252.0,67251.0,0.017]
[1729559499197,0.08790347,67252.0,67251.0,0.01]
[1729559505598,0.08790347,67252.0,67251.0,0.3708]
[1729559505786,0.074373,67252.0,67251.0,0.3708]
[1729559505990,0.17,67254.0,67251.0,0.3708]
[1729559506191,0.17,67261.0,67252.0,0.1301]
[1729559506507,0.074361,67263.0,67257.0,0.605167]
[1729559506802,0.074361,67263.0,67259.0,0.074365]
[1729559507299,0.074357,67267.0,67262.0,0.074362]
[1729559507502,0.074357,67267.0,67266.0,0.3608]
[1729559508903,0.077357,67267.0,67266.0,0.3608]
[1729559509205,0.079357,67267.0,67266.0,0.3608]
[1729559509406,0.080357,67267.0,67266.0,0.3608]
[1729559510107,0.078357,67267.0,67266.0,0.3608]
[1729559511494,0.081357,67267.0,67266.0,0.3608]
[1729559511897,0.079357,67267.0,67266.0,0.3608]
[1729559512095,0.082357,67267.0,67266.0,0.3608]
[1729559512307,0.082357,67267.0,67266.0,0.45112006]
[1729559514608,0.082357,67267.0,67266.0,0.5249304]
[1729559515509,0.081357,67267.0,67266.0,0.5249304]
[1729559516110,0.080357,67267.0,67266.0,0.5249304]
[1729559517810,0.078357,67267.0,67266.0,0.5249304]
[1729559518013,0.077357,67267.0,67266.0,0.5249304]
[1729559518319,0.082357,67267.0,67266.0,0.5249304]
[1729559518615,0.074357,67267.0,67266.0,0.5249304]
[1729559518816,0.080357,67267.0,67266.0,0.5249304]
[1729559519208,0.080357,67267.0,67266.0,0.45112006]
[1729559521517,0.1375,67278.0,67266.0,0.45112006]
[1729559521518,0.0008,67286.0,67266.0,1.06712006]
[1729559521722,0.3608,67293.0,67282.0,0.05903106]
[1729559521723,0.17,67283.0,67282.0,0.05903106]
[1729559521908,0.17,67283.0,67273.0,0.60459379]
[1729559521909,0.17,67283.0,67274.0,0.1395]
[1729559522216,0.074346,67276.0,67275.0,0.08959558]
[1729559524419,0.085346,67276.0,67275.0,0.09159558]
[1729559526421,0.085346,67276.0,67275.0,0.16538064]
[1729559526625,0.085346,67276.0,67275.0,0.07578506]
[1729559526814,0.085346,67276.0,67275.0,0.002]
[1729559527216,0.085346,67276.0,67275.0,0.09056609]
[1729559529919,0.085346,67276.0,67275.0,0.16447533]
[1729559530315,0.085346,67276.0,67275.0,0.16484774]
[1729559530526,0.085346,67276.0,67275.0,0.002]
[1729559530714,0.085346,67276.0,67275.0,0.16486944]
[1729559530915,0.085346,67276.0,67275.0,0.0909602]
[1729559531625,0.085346,67276.0,67275.0,0.0908635]
[1729559532330,0.085346,67276.0,67275.0,0.16479505]
[1729559532529,0.085346,67276.0,67275.0,0.0908635]
[1729559532726,0.085346,67276.0,67275.0,0.16480024]
[1729559533026,0.085346,67276.0,67275.0,0.0908635]
[1729559533627,0.085346,67276.0,67275.0,0.17948049]
[1729559533826,0.074343,67279.0,67277.0,0.074345]
[1729559534034,0.074339,67283.0,67278.0,0.5240065]
[1729559534329,0.07434,67282.0,67279.0,0.0888635]
[1729559534519,0.07434,67282.0,67280.0,0.0888635]
[1729559534831,0.07434,67282.0,67281.0,0.0888635]
[1729559535632,0.08134,67282.0,67281.0,0.0888635]
[1729559537033,0.07434,67282.0,67281.0,0.0898635]
[1729559537933,0.07434,67282.0,67281.0,0.0908635]
[1729559539937,0.07434,67282.0,67281.0,0.002]
[1729559540233,0.20884,67282.0,67281.0,0.002]
[1729559546437,0.20884,67282.0,67281.0,0.07574648]
[1729559547325,0.20884,67282.0,67281.0,0.16417239]
[1729559548037,0.20884,67282.0,67281.0,0.07574648]
[1729559548242,0.20884,67282.0,67281.0,0.1641626]
[1729559550639,0.07434,67282.0,67281.0,0.07574648]
[1729559550834,0.07434,67282.0,67281.0,0.09041032]
[1729559551034,0.07434,67282.0,67281.0,0.09039609]
[1729559552641,0.3608,67288.0,67281.0,0.64135277]
[1729559552642,0.074337,67285.0,67281.0,0.64135277]
[1729559552838,0.074337,67285.0,67284.0,0.08843504]
[1729559553042,0.074337,67285.0,67284.0,0.17682172]
[1729559554131,0.074337,67285.0,67284.0,0.44919609]
[1729559554328,0.17,67299.0,67284.0,0.98448615]
[1729559554648,0.074322,67298.0,67297.0,0.3608]
[1729559554825,0.074322,67298.0,67297.0,0.5220327]
[1729559555026,0.074322,67298.0,67297.0,0.44838768]
[1729559555435,0.074322,67298.0,67297.0,0.3608]
[1729559555841,0.074322,67298.0,67297.0,0.44826804]
[1729559557135,0.074322,67298.0,67297.0,0.46226804]
[1729559557544,0.074322,67298.0,67297.0,0.47626804]
[1729559558134,0.074322,67298.0,67297.0,0.46226804]
[1729559558351,0.074322,67298.0,67297.0,0.46228729]
[1729559558933,0.074322,67298.0,67297.0,0.3888]
[1729559561537,0.074322,67298.0,67297.0,0.028]
[1729559569754,0.520122,67298.0,67293.0,0.0587356]
[1729559570058,0.520122,67298.0,67287.0,0.0287356]
[1729559570059,0.17,67292.0,67287.0,0.0287356]
[1729559570239,0.074336,67286.0,67282.0,0.3608]
[1729559570439,0.17,67283.0,67282.0,0.43428729]
[1729559570840,0.244338,67283.0,67282.0,0.3608]
[1729559572652,0.257338,67283.0,67282.0,0.3618]
[1729559572841,0.268338,67283.0,67282.0,0.43628729]
[1729559573457,0.268338,67283.0,67282.0,0.5239043]
[1729559574657,0.268338,67283.0,67282.0,0.52399345]
[1729559575249,0.268338,67283.0,67282.0,0.45041701]
[1729559577061,0.098338,67283.0,67282.0,0.45041701]
[1729559577859,0.074329,67292.0,67285.0,0.074336]
[1729559578057,0.074329,67292.0,67287.0,0.07356382]
[1729559578265,0.074329,67292.0,67288.0,0.2731]
[1729559578558,0.17,67294.0,67288.0,0.34666382]
[1729559578762,0.074331,67290.0,67288.0,0.34666382]
[1729559579348,0.074331,67290.0,67288.0,0.34766382]
[1729559579956,0.001,67290.0,67288.0,0.34766382]
[1729559580155,0.074332,67289.0,67288.0,0.002]